bitfinex-derivatives/quotes_BNBF0:USTF0_20250309
["timestamp","ask_amount","ask_price","bid_price","bid_amount"]
[1741536732059,0.675,567.99,567.77,0.35225531]
[1741536732357,0.675,567.99,567.78,0.296473]
[1741536733352,0.675,567.99,567.79,0.3522429]
[1741536733551,0.675,567.99,567.8,0.296473]
[1741536733961,0.675,567.99,567.81,0.35223049]
[1741536734258,0.675,567.99,567.82,0.296473]
[1741536734461,0.675,567.99,567.83,0.296473]
[1741536734655,0.675,567.99,567.84,0.296473]
[1741536734853,0.772,568.0,567.85,0.296473]
[1741536735057,0.772,568.0,567.86,0.296473]
[1741536735258,0.772,568.0,567.87,0.296473]
[1741536735457,0.772,568.0,567.88,0.296473]
[1741536735655,0.772,568.0,567.82,0.296473]
[1741536736261,0.772,568.0,567.83,0.35221809]
[1741536736460,0.772,568.0,567.84,0.296473]
[1741536737461,0.772,568.0,567.85,0.296473]
[1741536737856,0.772,568.0,567.86,0.64867248]
[1741536738059,0.772,568.0,567.31,1.31676728]
[1741536738060,0.772,568.0,567.87,0.64866628]
[1741536738260,0.772,568.0,567.88,0.296473]
[1741536739262,0.546,568.08,567.88,0.296473]
[1741536741260,0.546,568.08,567.89,0.35218088]
[1741536741461,0.546,568.08,567.9,0.296473]
[1741536741655,0.546,568.08,567.91,0.35216847]
[1741536741962,0.546,568.08,567.92,0.296473]
[1741536742161,0.546,568.08,567.93,0.35215607]
[1741536742358,0.546,568.08,567.94,0.296473]
[1741536742561,0.546,568.08,567.95,0.35214367]
[1741536742766,0.546,568.08,567.96,0.296473]
[1741536743165,0.546,568.08,567.97,0.35213127]
[1741536743464,0.546,568.08,567.98,0.296473]
[1741536743664,0.546,568.08,567.99,0.35211887]
[1741536743856,0.546,568.08,568.0,0.296473]
[1741536744456,0.546,568.08,568.01,0.35210647]
[1741536744664,0.546,568.08,568.02,0.296473]
[1741536745066,0.546,568.08,568.03,0.29637082]
[1741536745268,0.546,568.08,568.04,0.29637082]
[1741536745566,0.546,568.08,568.05,0.29637082]
[1741536745766,0.546,568.08,568.02,0.29637082]
[1741536745965,0.546,568.08,568.03,0.29637082]
[1741536746164,0.546,568.08,568.02,0.29637082]
[1741536746361,0.546,568.08,568.03,0.29637082]
[1741536746562,0.546,568.08,568.02,0.29637082]
[1741536746766,0.546,568.08,568.03,0.29637082]
[1741536746967,0.546,568.08,568.02,0.29637082]
[1741536747162,0.546,568.08,568.03,0.29637082]
[1741536747366,0.546,568.08,568.02,0.29637082]
[1741536747567,0.546,568.08,568.03,0.29637082]
[1741536747863,0.546,568.08,568.04,0.29637082]
[1741536748067,0.546,568.08,568.02,0.29637082]
[1741536748264,0.546,568.08,568.03,0.29637082]
[1741536748468,0.546,568.08,568.02,0.29637082]
[1741536751575,0.546,568.08,568.03,0.35209407]
[1741536751771,0.546,568.08,568.04,0.29637082]
[1741536751977,0.546,568.08,568.05,0.35208168]
[1741536752379,0.546,568.08,568.06,0.29634442]
[1741536753177,0.546,568.08,568.07,0.35206928]
[1741536753378,0.546,568.08,568.07,0.6484137]
[1741536754882,0.13779347,568.08,568.07,0.6484137]
[1741536756486,0.598,568.13,568.07,0.6484137]
[1741536756682,0.598,568.13,568.08,0.29634442]
[1741536756890,0.598,568.13,568.07,0.35206928]
[1741536756891,0.598,568.13,568.09,0.29634442]
[1741536757187,0.18827476,568.13,568.1,0.29634442]
[1741536757387,0.11468658,568.13,568.11,0.29634442]
[1741536757581,0.11468658,568.13,568.12,0.29634442]
[1741536757981,0.11468658,568.13,568.08,0.29634442]
[1741536758188,0.11468658,568.13,568.09,0.29634442]
[1741536758587,0.722,568.18,568.07,0.35206928]
[1741536758588,0.722,568.18,568.1,0.29634442]
[1741536758891,0.722,568.18,568.11,0.29634442]
[1741536759084,0.722,568.18,568.08,0.29634442]
[1741536759285,1.634,568.43,568.09,0.29634442]
[1741536759485,1.634,568.43,568.07,0.35206928]
[1741536759486,1.634,568.43,568.1,0.29615442]
[1741536759682,1.634,568.43,568.07,0.35206928]
[1741536759889,1.634,568.43,568.08,0.29615168]
[1741536760484,1.634,568.43,568.09,0.29615168]
[1741536760687,1.634,568.43,568.1,0.29615168]
[1741536760892,1.634,568.43,568.11,0.29615168]
[1741536761185,1.634,568.43,568.12,0.29615168]
[1741536761390,1.634,568.43,568.13,0.29615168]
[1741536761589,1.634,568.43,568.14,0.29615168]
[1741536761791,1.634,568.43,568.15,0.29615168]
[1741536761990,1.634,568.43,568.16,0.29615168]
[1741536762189,1.634,568.43,568.08,0.29615168]
[1741536762389,1.634,568.43,568.09,0.64820857]
[1741536762589,1.634,568.43,568.1,0.29615168]
[1741536762789,1.634,568.43,568.11,0.29615168]
[1741536762991,1.634,568.43,568.12,0.29615168]
[1741536763289,1.634,568.43,568.13,0.64818378]
[1741536763490,1.634,568.43,568.14,0.29615168]
[1741536763690,1.634,568.43,568.15,0.35201971]
[1741536763990,1.634,568.43,568.16,0.29615168]
[1741536764291,1.634,568.43,568.17,0.35200732]
[1741536764484,1.634,568.43,568.18,0.29615168]
[1741536765089,1.634,568.43,568.19,0.29615168]
[1741536765390,1.634,568.43,568.2,0.29615168]
[1741536765792,1.634,568.43,568.21,0.29615168]
[1741536766092,1.634,568.43,568.22,0.29615168]
[1741536766389,1.634,568.43,568.23,0.29615168]
[1741536766593,1.634,568.43,568.24,0.29615168]
[1741536766790,1.634,568.43,568.25,0.29615168]
[1741536766991,1.634,568.43,568.26,0.29615168]
[1741536767192,1.634,568.43,568.17,0.35200732]
[1741536767392,1.634,568.43,568.18,0.29599841]
[1741536767593,1.634,568.43,568.19,0.29599841]
[1741536767793,1.634,568.43,568.2,0.29599841]
[1741536767994,1.634,568.43,568.21,0.29599841]
[1741536768297,1.634,568.43,568.22,0.29599841]
[1741536768494,1.634,568.43,568.23,0.29599841]
[1741536768696,1.634,568.43,568.24,0.29599841]
[1741536768895,1.634,568.43,568.18,0.29599841]
[1741536770698,1.634,568.43,568.17,0.35200732]
[1741536770890,1.634,568.43,568.18,0.2959852]
[1741536771990,1.634,568.43,568.19,0.35199493]
[1741536772300,0.839,568.43,568.2,0.2959852]
[1741536772495,0.839,568.43,568.21,0.35198254]
[1741536772691,0.839,568.43,568.22,0.2959852]
[1741536772896,0.839,568.43,568.23,0.2959852]
[1741536773090,0.839,568.43,568.24,0.35196395]
[1741536773296,0.839,568.43,568.25,0.2959852]
[1741536773596,0.839,568.43,568.26,0.2959852]
[1741536773791,0.839,568.43,568.27,0.2959852]
[1741536773995,0.839,568.43,568.24,0.35196395]
[1741536773996,0.839,568.43,568.28,0.2959852]
[1741536774193,0.839,568.43,568.29,0.2959852]
[1741536774390,0.839,568.43,568.24,0.35196395]
[1741536774593,0.839,568.43,568.25,0.29600279]
[1741536776498,0.827,568.49,568.25,0.29600279]
[1741536779903,0.827,568.49,568.26,0.35195157]
[1741536780102,0.827,568.49,568.27,0.29600279]
[1741536781501,0.827,568.49,568.28,0.35193918]
[1741536781901,0.827,568.49,568.29,0.29600279]
[1741536783604,0.827,568.49,568.3,0.35192679]
[1741536783802,0.827,568.49,568.31,0.29600279]
[1741536784103,0.827,568.49,568.32,0.35191441]
[1741536784298,0.827,568.49,568.33,0.29600279]
[1741536784499,0.827,568.49,568.34,0.35190203]
[1741536784696,0.827,568.49,568.35,0.29600279]
[1741536785003,0.827,568.49,568.36,0.35188964]
[1741536785199,0.827,568.49,568.37,0.29600279]
[1741536785700,0.827,568.49,568.38,0.35187726]
[1741536785901,0.827,568.49,568.39,0.29600279]
[1741536786102,0.827,568.49,568.4,0.35186488]
[1741536786296,0.827,568.49,568.41,0.29600279]
[1741536786805,0.827,568.49,568.42,0.2961194]
[1741536788404,0.827,568.49,568.42,0.6479719]
[1741536788705,0.827,568.49,568.43,0.2961194]
[1741536790414,0.827,568.49,568.44,0.29611773]
[1741536790610,0.827,568.49,568.45,0.29611773]
[1741536790910,0.827,568.49,568.46,0.29611773]
[1741536791104,0.827,568.49,568.43,0.29611773]
[1741536791305,0.827,568.49,568.44,0.29611773]
[1741536791511,0.827,568.49,568.45,0.29611773]
[1741536791711,0.827,568.49,568.43,0.29611773]
[1741536791907,0.827,568.49,568.42,0.3518525]
[1741536792413,0.827,568.49,568.43,0.29619834]
[1741536793005,0.827,568.49,568.42,0.3518525]
[1741536793210,0.827,568.49,568.43,0.29620133]
[1741536793915,0.827,568.49,568.42,0.3518525]
[1741536794214,0.827,568.49,568.43,0.29620944]
[1741536796014,0.827,568.49,568.44,0.29620952]
[1741536796210,0.827,568.49,568.43,0.29620952]
[1741536797818,0.752,568.6,568.43,0.29620952]
[1741536799619,0.752,568.6,568.44,0.29617719]
[1741536799819,0.752,568.6,568.45,0.29617719]
[1741536800017,0.752,568.6,568.43,0.29617719]
[1741536800216,0.752,568.6,568.44,0.29617719]
[1741536800417,0.752,568.6,568.42,0.3518525]
[1741536800418,0.752,568.6,568.43,0.29617719]
[1741536800613,0.752,568.6,568.44,0.29617719]
[1741536800816,0.752,568.6,568.43,0.29617719]
[1741536801517,1.93,568.79,568.43,0.29617719]
[1741536801715,2.043,568.79,568.43,0.29617719]
[1741536803017,2.666,568.79,568.43,0.29617719]
[1741536803716,2.666,568.79,568.42,0.3518525]
[1741536803919,2.666,568.79,568.43,0.29620099]
[1741536804520,3.242,568.79,568.43,0.29620099]
[1741536807522,3.242,568.79,568.42,0.3518525]
[1741536807917,3.242,568.79,568.43,0.29606481]
[1741536812024,3.242,568.79,568.42,0.3518525]
[1741536812220,3.242,568.79,568.43,0.29612722]
[1741536814621,3.242,568.79,568.44,0.2961642]
[1741536814822,3.242,568.79,568.43,0.2961642]
[1741536815025,3.242,568.79,568.44,0.2961642]
[1741536815026,1.734,568.79,568.44,0.2961642]
[1741536815226,1.734,568.79,568.43,0.2961642]
[1741536815723,1.734,568.79,568.44,0.29617733]
[1741536815928,1.734,568.79,568.43,0.29617733]
[1741536816228,1.734,568.79,568.44,0.29617988]
[1741536816423,1.734,568.79,568.43,0.29617988]
[1741536816627,1.734,568.79,568.44,0.29617988]
[1741536816827,1.734,568.79,568.43,0.29617988]
[1741536817022,1.734,568.79,568.42,0.3518525]
[1741536817023,1.734,568.79,568.44,0.29617988]
[1741536817228,1.734,568.79,568.45,0.29617988]
[1741536817432,1.734,568.79,568.43,0.29617988]
[1741536818125,2.963,568.79,568.43,0.29617988]
[1741536819127,2.963,568.79,568.42,0.3518525]
[1741536819327,2.963,568.79,568.43,0.2961599]
[1741536819528,2.963,568.79,568.42,0.3518525]
[1741536819724,2.963,568.79,568.43,0.29617261]
[1741536823035,2.963,568.79,568.44,0.29616941]
[1741536823234,2.428,568.79,568.43,0.29616941]
[1741536823535,1.852,568.79,568.44,0.29616941]
[1741536823736,1.852,568.79,568.43,0.29616941]
[1741536823937,1.852,568.79,568.45,0.29616941]
[1741536824132,1.852,568.79,568.46,0.29616941]
[1741536824334,1.852,568.79,568.43,0.29616941]
[1741536824835,1.852,568.79,568.44,0.29614998]
[1741536825036,1.852,568.79,568.43,0.29614998]
[1741536825238,1.852,568.79,568.44,0.29614998]
[1741536825634,1.852,568.79,568.45,0.29614998]
[1741536825838,1.852,568.79,568.43,0.29614998]
[1741536826038,1.852,568.79,568.44,0.29614998]
[1741536826238,1.852,568.79,568.43,0.29614998]
[1741536826642,2.427,568.79,568.42,0.3518525]
[1741536826841,2.427,568.79,568.43,0.29616072]
[1741536827042,1.804,568.79,568.43,0.29616072]
[1741536829345,1.804,568.79,568.44,0.35184012]
[1741536829547,1.804,568.79,568.45,0.29616072]
[1741536829743,1.804,568.79,568.46,0.35182774]
[1741536829943,1.804,568.79,568.47,0.29616072]
[1741536830146,1.804,568.79,568.46,0.35182774]
[1741536830342,1.804,568.79,568.47,0.2960642]
[1741536831148,1.804,568.79,568.48,0.35181536]
[1741536831447,1.804,568.79,568.49,0.2960642]
[1741536831745,1.804,568.79,568.5,0.35180299]
[1741536831951,1.804,568.79,568.51,0.2960642]
[1741536832153,1.804,568.79,568.52,0.35179061]
[1741536832349,1.804,568.79,568.53,0.2960642]
[1741536837155,1.283,568.79,568.53,0.2960642]
[1741536837755,1.283,568.79,568.54,0.29610607]
[1741536838055,1.283,568.79,568.52,0.35179061]
[1741536838056,1.283,568.79,568.55,0.29610607]
[1741536838257,1.283,568.79,568.56,0.29610607]
[1741536838556,1.283,568.79,568.52,0.35179061]
[1741536838557,1.283,568.79,568.57,0.29610607]
[1741536838763,1.283,568.79,568.53,0.29610607]
[1741536838958,1.283,568.79,568.54,0.29610607]
[1741536839162,1.283,568.79,568.55,0.29610607]
[1741536839359,1.283,568.79,568.53,0.29610607]
[1741536839660,1.283,568.79,568.54,0.29610607]
[1741536839959,1.283,568.79,568.52,0.35179061]
[1741536839960,1.283,568.79,568.55,0.29610607]
[1741536840160,1.283,568.79,568.56,0.29610607]
[1741536840355,1.283,568.79,568.53,0.29610607]
[1741536840557,1.283,568.79,568.54,0.29610607]
[1741536840853,1.283,568.79,568.53,0.29610607]
[1741536841058,1.171,568.79,568.54,0.29610607]
[1741536841259,1.171,568.79,568.53,0.29610607]
[1741536841459,1.171,568.79,568.54,0.29610607]
[1741536841655,1.171,568.79,568.55,0.29610607]
[1741536841856,1.171,568.79,568.53,0.29610607]
[1741536842056,0.575,568.79,568.54,0.29610607]
[1741536842258,0.575,568.79,568.55,0.29610607]
[1741536842563,0.575,568.79,568.56,0.29610607]
[1741536842760,0.575,568.79,568.53,0.29610607]
[1741536842961,0.575,568.79,568.54,0.29610607]
[1741536843258,0.575,568.79,568.55,0.29610607]
[1741536843462,0.575,568.79,568.56,0.29610607]
[1741536843662,0.575,568.79,568.57,0.29610607]
[1741536843965,0.575,568.79,568.58,0.29610607]
[1741536844262,0.575,568.79,568.52,0.35179061]
[1741536844263,0.575,568.79,568.59,0.29610607]
[1741536844463,0.575,568.79,568.53,0.29610607]
[1741536846464,0.575,568.79,568.54,0.35177823]
[1741536846663,0.575,568.79,568.55,0.29610607]
[1741536846859,0.575,568.79,568.55,0.64787812]
[1741536847060,0.575,568.79,568.56,0.29610607]
[1741536847266,0.575,568.79,568.57,0.35175967]
[1741536847565,0.575,568.79,568.58,0.29610607]
[1741536847758,0.575,568.79,568.59,0.3517473]
[1741536847963,0.575,568.79,568.6,0.29610607]
[1741536848161,0.575,568.79,568.61,0.35173493]
[1741536848366,0.575,568.79,568.62,0.29610607]
[1741536848662,0.575,568.79,568.63,0.35172256]
[1741536848861,0.575,568.79,568.64,0.29610607]
[1741536849067,0.575,568.79,568.65,0.35171019]
[1741536849268,0.575,568.79,568.66,0.29610607]
[1741536849468,0.575,568.79,568.67,0.35169782]
[1741536849665,1.457,568.89,568.68,0.29610607]
[1741536849864,1.457,568.89,568.69,0.64755538]
[1741536850168,1.457,568.89,568.7,0.64754919]
[1741536850368,1.457,568.89,568.71,0.64754301]
[1741536850568,1.457,568.89,568.72,0.64753683]
[1741536850772,1.457,568.89,568.73,0.64753064]
[1741536851070,1.457,568.89,568.74,0.64752446]
[1741536851369,1.457,568.89,568.75,0.64751828]
[1741536851569,1.457,568.89,568.75,0.35164835]
[1741536851769,1.457,568.89,568.76,0.29586842]
[1741536852669,1.457,568.89,568.77,0.35163598]
[1741536852869,1.457,568.89,568.78,0.29586842]
[1741536853068,1.457,568.89,568.79,0.35162362]
[1741536853267,1.457,568.89,568.8,0.29586842]
[1741536853867,1.457,568.89,568.81,0.35161125]
[1741536854073,1.457,568.89,568.82,0.29586842]
[1741536854265,1.457,568.89,568.83,0.35159889]
[1741536854471,1.457,568.89,568.84,0.29586842]
[1741536854671,1.457,568.89,568.85,0.35158653]
[1741536854971,1.457,568.89,568.86,0.29586842]
[1741536855368,1.457,568.89,568.87,0.29588766]
[1741536855572,1.457,568.89,568.86,0.29588766]
[1741536855872,1.457,568.89,568.87,0.29588766]
[1741536856074,1.457,568.89,568.86,0.29588766]
[1741536856466,1.457,568.89,568.87,0.35157417]
[1741536856671,1.457,568.89,568.88,0.29588766]
[1741536857872,1.457,568.89,568.87,0.35157417]
[1741536858071,1.457,568.89,568.88,0.29588861]
[1741536860673,1.457,568.89,568.87,0.35157417]
[1741536860869,1.457,568.89,568.88,0.29586808]
[1741536862472,1.457,568.89,568.87,0.35157417]
[1741536862672,1.457,568.89,568.88,0.29584143]
[1741536863269,1.457,568.89,568.88,0.64740942]
[1741536864571,1.457,568.89,568.88,0.64738538]
[1741536870375,0.736,568.89,568.88,0.64738538]
[1741536871476,0.558,569.12,568.88,0.64738538]
[1741536871677,0.558,569.12,568.89,0.6473792]
[1741536871880,0.558,569.12,568.9,0.64737302]
[1741536872082,0.558,569.12,568.91,0.64736684]
[1741536872281,0.558,569.12,568.92,0.64736066]
[1741536872476,0.558,569.12,568.93,0.29581739]
[1741536872676,0.875,569.23,568.94,0.35153091]
[1741536872977,0.875,569.23,568.95,0.29581739]
[1741536873182,0.875,569.23,568.96,0.35151856]
[1741536873583,0.875,569.23,568.97,0.29569669]
[1741536873782,0.875,569.23,568.98,0.3515062]
[1741536873985,0.875,569.23,568.99,0.29569669]
[1741536874185,0.875,569.23,569.0,0.35149384]
[1741536874381,0.875,569.23,569.01,0.29569669]
[1741536874587,0.875,569.23,569.02,0.35148149]
[1741536874788,0.875,569.23,569.03,0.29569669]
[1741536874992,0.875,569.23,569.04,0.35146914]
[1741536875288,0.875,569.23,569.05,0.29569669]
[1741536875491,0.875,569.23,569.06,0.64716245]
[1741536875692,0.875,569.23,569.07,0.64715628]
[1741536875889,0.875,569.23,569.08,0.29570567]
[1741536876193,0.875,569.23,569.09,0.35143826]
[1741536876395,0.875,569.23,569.1,0.29570567]
[1741536880793,0.875,569.23,569.09,0.35143826]
[1741536880993,0.875,569.23,569.1,0.29576229]
[1741536881991,0.645,569.24,569.1,0.29576229]
[1741536882597,0.108,569.26,569.1,0.29576229]
[1741536886397,0.108,569.26,569.11,0.29579774]
[1741536886597,0.108,569.26,569.1,0.29579774]
[1741536886797,0.108,569.26,569.11,0.29579774]
[1741536886998,0.108,569.26,569.1,0.29579774]
[1741536887199,0.108,569.26,569.11,0.29579774]
[1741536887397,0.108,569.26,569.1,0.29579774]
[1741536887598,0.108,569.26,569.11,0.29579774]
[1741536887794,0.108,569.26,569.1,0.29579774]
[1741536888001,0.108,569.26,569.11,0.29579774]
[1741536888300,0.108,569.26,569.12,0.29579774]
[1741536888496,0.108,569.26,568.3,1.31676728]
[1741536888702,0.108,569.26,568.32,0.35191441]
[1741536888898,0.108,569.26,568.33,0.29589708]
[1741536889201,0.108,569.26,568.32,0.35191441]
[1741536889202,0.108,569.26,568.34,0.29589708]
[1741536889400,0.108,569.26,568.32,1.66868169]
[1741536889401,0.108,569.26,568.35,0.29589708]
[1741536889599,0.108,569.26,568.36,0.29589708]
[1741536889998,0.108,569.26,568.37,0.29589708]
[1741536890194,0.108,569.26,568.33,0.29589708]
[1741536890899,2.32658932,569.25,568.33,0.29589708]
[1741536891094,1.30007102,569.25,568.33,0.29589708]
[1741536891299,1.60596475,569.25,568.33,0.29589708]
[1741536891500,1.02632245,569.24,568.33,0.29589708]
[1741536891802,1.02632245,569.23,568.33,0.29589708]
[1741536891994,1.02632245,569.22,568.33,0.29589708]
[1741536892199,1.02632245,569.21,568.33,0.29589708]
[1741536892399,0.733,569.21,568.33,0.29589708]
[1741536892598,1.02608706,569.2,568.33,0.29589708]
[1741536892795,2.32615808,569.2,568.33,0.29589708]
[1741536892995,1.30007102,569.19,568.33,0.29589708]
[1741536893596,0.53,569.2,568.33,0.29589708]
[1741536894194,1.29924727,569.19,568.33,0.29589708]
[1741536894499,1.6051652,569.19,568.33,0.29589708]
[1741536894897,0.30591793,569.19,568.33,0.29589708]
[1741536895400,0.30591793,569.19,568.34,0.64796396]
[1741536895597,0.88291793,569.19,568.35,0.29606193]
[1741536895797,0.88291793,569.19,568.36,0.35188964]
[1741536896003,0.88291793,569.19,568.37,0.29606193]
[1741536896202,0.88291793,569.19,568.38,0.35187726]
[1741536896403,0.88291793,569.19,568.39,0.29606193]
[1741536896599,0.98791793,569.19,568.4,0.35186488]
[1741536896802,0.98791793,569.19,568.41,0.29606193]
[1741536896998,0.682,569.19,568.42,0.3518525]
[1741536897206,0.682,569.19,568.43,0.29606193]
[1741536897501,0.682,569.19,568.44,0.35184012]
[1741536897803,0.682,569.19,568.45,0.29606193]
[1741536898004,0.682,569.19,568.46,0.35182774]
[1741536898199,0.30585206,569.18,568.47,0.29606193]
[1741536898402,0.30585206,569.18,568.48,0.35181536]
[1741536898604,0.30585206,569.18,568.49,0.29606193]
[1741536899100,0.30585206,569.18,568.5,0.35180299]
[1741536899299,0.30585206,569.18,568.51,0.29606193]
[1741536899504,0.30585206,569.18,568.51,0.64785873]
[1741536899705,0.30585206,569.18,568.52,0.29606193]
[1741536900202,0.749,569.17,568.52,0.29606193]
[1741536901807,0.749,569.17,568.53,0.35178442]
[1741536902001,0.749,569.17,568.54,0.29606193]
[1741536903007,0.749,569.17,568.55,0.35177205]
[1741536903208,0.749,569.17,568.56,0.29606193]
[1741536903403,0.749,569.17,568.57,0.35175967]
[1741536903708,0.749,569.17,568.58,0.29606193]
[1741536904307,0.749,569.17,568.59,0.3517473]
[1741536904508,0.749,569.17,568.6,0.29606193]
[1741536904708,0.749,569.17,568.61,0.35173493]
[1741536904907,0.749,569.17,568.62,0.29606193]
[1741536905508,0.749,569.17,568.61,0.35173493]
[1741536905709,0.749,569.17,568.62,0.29595965]
[1741536908209,0.749,569.17,568.63,0.29602592]
[1741536908405,0.571,569.16,568.64,0.29602592]
[1741536908606,1.218,569.16,568.62,0.29602592]
[1741536908808,1.218,569.16,568.63,0.29602592]
[1741536909111,1.218,569.16,568.64,0.29602592]
[1741536909313,1.218,569.16,568.62,0.29602592]
[1741536909512,1.218,569.16,568.63,0.29602592]
[1741536909806,1.218,569.16,568.64,0.29602592]
[1741536910012,1.218,569.16,568.62,0.29602592]
[1741536910208,1.218,569.16,568.63,0.29602592]
[1741536910412,1.218,569.16,568.62,0.29602592]
[1741536910610,1.218,569.16,568.63,0.29602592]
[1741536910811,1.218,569.16,568.64,0.35171637]
[1741536911006,1.218,569.16,568.65,0.29589238]
[1741536912113,1.218,569.16,568.66,0.351704]
[1741536912317,1.218,569.16,568.67,0.29589238]
[1741536912614,1.218,569.16,568.68,0.35169163]
[1741536912817,1.218,569.16,568.69,0.29589238]
[1741536913116,1.218,569.16,568.7,0.35167926]
[1741536913616,1.218,569.16,568.71,0.29586012]
[1741536913916,1.218,569.16,568.72,0.3516669]
[1741536914110,1.218,569.16,568.73,0.29586012]
[1741536914313,1.218,569.16,568.74,0.35165453]
[1741536914509,1.218,569.16,568.75,0.29586012]
[1741536914916,0.549,569.15,568.75,0.29586012]
[1741536915112,0.549,569.15,568.76,0.35164216]
[1741536915317,0.549,569.15,568.77,0.29586012]
[1741536915617,0.549,569.15,568.78,0.3516298]
[1741536915817,0.549,569.15,568.79,0.29586012]
[1741536917214,0.549,569.15,568.79,0.64748374]
[1741536917415,0.549,569.15,568.8,0.64747756]
[1741536917616,0.549,569.15,568.81,0.64747137]
[1741536917816,0.549,569.15,568.82,0.29586012]
[1741536918016,0.549,569.15,568.83,0.29586012]
[1741536918212,0.549,569.15,568.84,0.64745283]
[1741536918417,0.549,569.15,568.85,0.64744665]
[1741536918617,0.549,569.15,568.86,0.64744047]
[1741536919017,0.549,569.15,568.87,0.29586012]
[1741536919718,0.549,569.15,568.86,0.35158035]
[1741536919719,0.549,569.15,568.88,0.29586012]
[1741536919918,0.549,569.15,568.89,0.29586012]
[1741536920220,0.549,569.15,568.46,1.31676728]
[1741536920221,0.549,569.15,568.9,0.64741575]
[1741536920416,0.549,569.15,568.91,0.29586012]
[1741536920615,0.549,569.15,568.92,0.29586012]
[1741536920820,0.549,569.15,568.93,0.29586012]
[1741536921015,0.549,569.15,568.9,0.35155563]
[1741536921016,0.549,569.15,568.94,0.29586012]
[1741536921221,0.549,569.15,568.9,0.35155563]
[1741536921222,0.549,569.15,568.91,0.29586012]
[1741536921521,0.549,569.15,568.92,0.29586012]
[1741536921724,0.549,569.15,568.93,0.29566921]
[1741536921923,0.549,569.15,568.9,0.35155563]
[1741536921924,0.549,569.15,568.91,0.29566921]
[1741536922123,0.549,569.15,568.92,0.29566921]
[1741536922318,0.549,569.15,568.91,0.29566921]
[1741536922517,0.549,569.15,568.92,0.29566921]
[1741536922721,0.549,569.15,568.6,1.31676728]
[1741536922722,0.549,569.15,568.93,0.6472063]
[1741536922921,0.549,569.15,568.94,0.29566921]
[1741536923120,0.549,569.15,568.94,0.64720012]
[1741536923318,0.549,569.15,568.95,0.29566921]
[1741536923517,0.549,569.15,568.96,0.35151856]
[1741536923823,0.549,569.15,568.97,0.29566921]
[1741536924027,0.549,569.15,568.98,0.3515062]
[1741536924223,0.549,569.15,568.99,0.29566921]
[1741536924427,0.549,569.15,569.0,0.35149384]
[1741536924628,0.549,569.15,569.01,0.29566921]
[1741536924826,0.549,569.15,569.02,0.35148149]
[1741536925027,0.549,569.15,569.03,0.29566921]
[1741536925229,0.549,569.15,569.04,0.35146914]
[1741536925429,0.549,569.15,569.05,0.29566256]
[1741536925628,0.549,569.15,569.06,0.35145678]
[1741536925824,0.549,569.15,569.07,0.29566256]
[1741536926127,0.549,569.15,569.08,0.35144443]
[1741536926329,0.549,569.15,569.09,0.29566256]
[1741536926526,0.549,569.15,569.1,0.35143208]
[1741536926728,0.549,569.15,569.11,0.29566256]
[1741536930726,0.549,569.15,569.1,0.35143208]
[1741536930926,0.549,569.15,569.11,0.29566812]
[1741536932533,0.549,569.15,569.12,0.29568043]
[1741536932733,0.549,569.15,569.11,0.29568043]
[1741536932934,0.549,569.15,569.12,0.29568043]
[1741536933129,0.549,569.15,569.11,0.29568043]
[1741536933332,0.549,569.15,569.12,0.29568043]
[1741536933532,0.549,569.15,569.11,0.29568043]
[1741536933732,0.549,569.15,569.12,0.64710016]
[1741536933933,0.549,569.15,569.13,0.29568043]